bitfinex/quotes_SOLUSD_20250803
["timestamp","ask_amount","ask_price","bid_price","bid_amount"]
[1754196620212,4.1937899,160.66,160.64,4.44469883]
[1754196620418,4.2237899,160.67,160.65,0.66]
[1754196620613,0.03,160.67,160.65,0.66]
[1754196620837,4.2237899,160.67,160.65,0.66]
[1754196621029,0.03,160.67,160.65,0.66]
[1754196621344,4.2237899,160.67,160.66,0.66]
[1754196622238,4.2237899,160.67,160.64,3.78469883]
[1754196622420,4.2237899,160.67,160.65,0.66]
[1754196623845,4.1937899,160.66,160.65,0.66]
[1754196627546,4.2237899,160.67,160.65,0.66]
[1754196630247,4.8937899,160.67,160.65,0.66]
[1754196632155,4.8937899,160.67,160.64,3.78469883]
[1754196632342,4.8937899,160.67,160.64,4.44469883]
[1754196633852,4.8937899,160.67,160.64,0.72]
[1754196634239,4.2237899,160.67,160.64,0.06]
[1754196634551,3.72469883,160.65,160.64,0.06]
[1754196634734,4.1937899,160.65,160.64,0.06]
[1754196635055,8.61848873,160.65,160.64,0.06]
[1754196635462,4.8937899,160.65,160.64,0.06]
[1754196635633,8.61848873,160.65,160.64,0.06]
[1754196636628,51.83848873,160.65,160.64,0.06]
[1754196642560,51.13848873,160.65,160.64,0.06]
[1754196643167,51.83848873,160.65,160.64,0.06]
[1754196645865,57.08072611,160.65,160.64,0.06]
[1754196649777,81.29730039,160.65,160.64,0.06]
[1754196650073,89.64790531,160.65,160.64,0.06]
[1754196651264,92.90638947,160.65,160.64,0.06]
[1754196653971,99.13110157,160.65,160.64,0.06]
[1754196654155,20.048848,160.64,160.63,0.06]
[1754196654355,41.80883736,160.64,160.63,0.06]
[1754196654867,45.06042385,160.64,160.63,0.06]
[1754196655471,56.53117522,160.64,160.63,0.06]
[1754196656981,51.28552345,160.64,160.62,0.06]
[1754196657185,67.9431727,160.63,160.62,0.06]
[1754196657387,73.88360084,160.63,160.62,0.06]
[1754196660699,73.18360084,160.63,160.62,0.06]
[1754196661565,67.9431727,160.63,160.62,0.06]
[1754196661763,68.6431727,160.63,160.62,0.06]
[1754196662280,73.88352621,160.63,160.62,0.06]
[1754196662477,74.86865984,160.63,160.62,0.06]
[1754196662674,97.57207206,160.63,160.61,0.06]
[1754196662990,23.34584402,160.62,160.61,0.06]
[1754196664190,29.57171875,160.62,160.61,0.06]
[1754196664565,46.35640272,160.62,160.61,0.06]
[1754196666496,49.61566135,160.62,160.61,0.06]
[1754196669176,49.61566135,160.62,160.6,0.06]
[1754196669376,57.03923623,160.61,160.6,0.06]
[1754196671379,73.1739202,160.61,160.6,0.75]
[1754196674308,4.1937899,160.61,160.6,0.75]
[1754196674496,47.4337899,160.61,160.6,0.75]
[1754196674883,51.15848873,160.61,160.6,0.75]
[1754196675740,47.4337899,160.61,160.6,0.75]
[1754196676012,7.91848873,160.61,160.6,0.75]
[1754196679884,4.1937899,160.61,160.6,0.75]
[1754196685527,7.91848873,160.61,160.6,0.75]
[1754196687549,4.1937899,160.61,160.6,4.47469883]
[1754196687829,4.1937899,160.62,160.6,4.47469883]
[1754196688006,0.03,160.63,160.61,4.41469883]
[1754196688339,0.03,160.63,160.61,0.69]
[1754196688525,4.2237899,160.63,160.62,0.69]
[1754196688710,0.03,160.63,160.62,0.69]
[1754196695207,0.03,160.63,160.62,4.41469883]
[1754196699160,0.03,160.63,160.62,8.60848883]
[1754196714351,0.03,160.63,160.62,4.88379]
[1754196714555,0.71,160.63,160.62,26.0]
[1754196714737,0.71,160.63,160.62,29.72469883]
[1754196717541,0.03,160.63,160.62,29.72469883]
[1754196720478,0.71,160.63,160.61,2.496956]
[1754196720637,0.71,160.63,160.6,3.78469883]
[1754196720835,0.71,160.63,160.6,6.28196783]
[1754196721239,1.30316943,160.62,160.6,0.06]
[1754196721646,0.68,160.61,160.6,0.06]
[1754196723359,0.62316943,160.62,160.6,0.06]
[1754196723872,0.03,160.63,160.61,0.67]
[1754196724045,0.03,160.63,160.61,4.39469883]
[1754196724847,0.03,160.63,160.61,6.49783054]
[1754196725283,0.03,160.63,160.62,6.52783054]
[1754196725645,0.03,160.63,160.62,11.37478954]
[1754196729176,0.03,160.63,160.62,6.52783054]
[1754196731562,0.03,160.63,160.62,10.75162054]
[1754196746767,0.03,160.63,160.62,34.65191313]
[1754196753204,0.71,160.63,160.62,77.17191313]
[1754196753368,0.71,160.63,160.62,73.44379]
[1754196753564,0.71,160.63,160.62,77.17191313]
[1754196753988,0.71,160.63,160.62,72.94812313]
[1754196755886,0.03,160.63,160.62,72.94812313]
[1754196759876,0.03,160.63,160.62,73.61812313]
[1754196760076,0.03,160.63,160.62,77.81191313]
[1754196772311,4.20299265,160.66,160.65,42.78468397]
[1754196772525,0.03,160.68,160.66,42.78468397]
[1754196772685,0.03,160.69,160.68,16.78468397]
[1754196772881,0.03,160.69,160.68,20.5128071]
[1754196773087,0.03,160.69,160.68,21.1828071]
[1754196774915,0.03,160.69,160.68,23.27322263]
[1754196775220,0.03,160.71,160.7,26.0]
[1754196775398,0.03,160.71,160.7,80.87707732]
[1754196775599,0.03,160.71,160.7,81.54707732]
[1754196776125,0.03,160.71,160.7,98.33176129]
[1754196779296,0.2,160.74,160.7,98.33176129]
[1754196779524,0.2,160.74,160.73,5.81853866]
[1754196779710,0.2,160.74,160.73,49.05853866]
[1754196780021,0.2,160.74,160.73,49.72853866]
[1754196780428,0.2,160.74,160.73,49.05853866]
[1754196781417,0.86,160.74,160.73,43.24]
[1754196786494,0.2,160.74,160.73,49.05853866]
[1754196790037,0.89,160.74,160.73,43.24]
[1754196791116,0.89,160.74,160.73,49.05853866]
[1754196791619,0.2,160.74,160.73,49.05853866]
[1754196792929,0.89,160.74,160.73,49.05853866]
[1754196794531,0.89,160.74,160.73,43.24]
[1754196796030,0.2,160.74,160.73,43.24]
[1754196796442,0.2,160.74,160.73,49.05853866]
[1754196796813,0.2,160.74,160.73,43.24]
[1754196797008,0.89,160.74,160.73,43.24]
[1754196797532,0.89,160.74,160.71,0.06]
[1754196797716,6.01853866,160.74,160.71,0.06]
[1754196797916,5.81853866,160.72,160.71,0.06]
[1754196798308,6.50853866,160.72,160.71,0.06]
[1754196801615,0.69,160.72,160.71,0.06]
[1754196801827,6.50853866,160.72,160.71,0.06]
[1754196802851,30.86908043,160.72,160.71,0.06]
[1754196803136,41.83008151,160.72,160.71,0.06]
[1754196806645,85.11008151,160.72,160.71,0.06]
[1754196806826,91.3320825,160.72,160.71,0.06]
[1754196807334,97.15062116,160.72,160.69,0.06]
[1754196807543,28.42176129,160.7,160.69,0.06]
[1754196807829,33.21102081,160.7,160.69,0.06]
[1754196808241,33.90102081,160.7,160.69,0.06]
[1754196808812,28.08248215,160.7,160.69,0.06]
[1754196809837,11.29779818,160.7,160.69,0.06]
[1754196812727,7.13170809,160.7,160.69,0.06]
[1754196814846,0.62316943,160.7,160.69,0.06]
[1754196815049,6.44170809,160.7,160.69,0.76]
[1754196817353,6.44170809,160.7,160.69,0.06]
[1754196826556,7.14170809,160.7,160.69,0.06]
[1754196828061,6.44170809,160.7,160.69,0.06]
[1754196829261,0.62316943,160.7,160.69,0.06]
[1754196829464,6.44170809,160.7,160.69,0.06]
[1754196830037,7.14170809,160.7,160.69,0.06]
[1754196832555,6.44170809,160.7,160.69,0.06]
[1754196834442,10.61657331,160.7,160.69,0.06]
[1754196836144,10.61657331,160.7,160.69,0.76]
[1754196836838,4.35072478,160.71,160.69,0.76]
[1754196838160,3.72755535,160.7,160.69,0.76]
[1754196838969,5.82468936,160.7,160.69,0.76]
[1754196842869,0.65316943,160.71,160.69,0.76]
[1754196843072,0.03,160.71,160.69,0.76]
[1754196846570,10.03224849,160.71,160.69,0.06]
[1754196846772,10.03224849,160.71,160.7,0.72]
[1754196850976,0.03,160.71,160.7,0.72]
[1754196853494,5.85468936,160.71,160.69,0.06]
[1754196853777,18.87888592,160.7,160.69,0.06]
[1754196861170,24.09221008,160.7,160.69,0.06]
[1754196862460,31.66806788,160.7,160.69,0.06]
[1754196864956,74.90806788,160.7,160.69,0.06]
[1754196868764,72.81301123,160.7,160.69,0.06]
[1754196869266,79.03578658,160.7,160.69,0.06]
[1754196869488,72.81301123,160.7,160.69,0.06]
[1754196870880,105.52567723,160.7,160.67,0.06]
[1754196871069,3.72963271,160.68,160.67,0.06]
[1754196871270,56.3810493,160.68,160.67,0.06]
[1754196871576,57.0510493,160.68,160.67,0.06]
[1754196872994,59.15023205,160.68,160.67,0.06]
[1754196873283,53.91637459,160.68,160.67,0.06]
[1754196873658,53.24637459,160.68,160.67,0.06]
[1754196874364,53.24637459,160.68,160.67,0.78]
[1754196875978,4.17755913,160.68,160.67,0.78]
[1754196876194,10.00637459,160.68,160.67,0.78]
[1754196878567,4.17755913,160.68,160.67,0.78]
[1754196878767,10.00637459,160.68,160.67,0.78]
[1754196881172,0.62316943,160.7,160.67,6.60881546]
[1754196881478,4.18380171,160.7,160.68,0.65]
[1754196881682,10.6657866,160.71,160.68,0.65]
[1754196882997,5.82881546,160.7,160.68,0.65]
[1754196883194,5.82881546,160.7,160.69,0.65]
[1754196888386,4.83697114,160.71,160.69,0.65]
[1754196888586,5.82881546,160.7,160.69,0.65]
[1754196892504,4.83697114,160.71,160.69,0.65]
[1754196892702,10.6657866,160.71,160.69,0.65]
[1754196892893,8.56406418,160.71,160.67,0.06]
[1754196893205,8.56406418,160.71,160.7,0.65]
[1754196893703,7.94089475,160.71,160.7,0.65]
[1754196893891,4.21380171,160.71,160.7,0.65]
[1754196895282,0.03,160.71,160.7,0.65]
[1754196911318,0.03,160.71,160.7,4.37709304]
[1754196916842,0.03,160.71,160.7,36.07014917]
[1754196918856,0.03,160.71,160.7,29.06953729]
[1754196927648,0.03,160.73,160.72,42.78468397]
[1754196927848,0.03,160.73,160.72,91.80211063]
[1754196928155,0.03,160.73,160.72,92.48211063]
[1754196929044,0.03,160.73,160.72,94.97688763]
[1754196933530,0.03,160.73,160.72,94.29688763]
[1754196935342,0.03,160.73,160.72,94.94688763]
[1754196939441,0.03,160.73,160.72,95.56908772]
[1754196940935,0.03,160.73,160.72,93.47382308]
[1754196964218,0.2,160.74,160.72,93.47382308]
[1754196964421,0.2,160.74,160.73,4.37216202]
[1754196966093,0.2,160.74,160.73,21.15684599]
[1754196973219,0.2,160.75,160.74,16.78468397]
[1754196973398,0.2,160.75,160.74,64.97896867]
[1754196973922,0.2,160.75,160.74,67.47312267]
[1754196979726,0.68,160.81,160.78,16.78468397]
[1754196979906,0.88,160.8,160.78,63.68684599]
[1754196980113,0.88,160.79,160.78,63.68684599]
[1754196980538,0.88,160.79,160.78,67.88582599]
[1754196982633,0.88,160.79,160.78,64.16366397]
[1754196982844,0.88,160.79,160.78,67.88582599]
[1754196983214,0.88,160.79,160.78,24.70582599]
[1754196983426,0.88,160.79,160.78,67.88582599]
[1754196985952,0.88,160.79,160.78,43.18]
[1754196987318,4.60216202,160.79,160.78,43.18]
[1754196988219,0.88,160.79,160.78,43.18]
[1754196990249,4.60216202,160.79,160.78,43.18]
[1754196991948,4.60216202,160.79,160.74,4.82215]
[1754196992150,3.72216202,160.77,160.75,43.18]
[1754196992334,0.68,160.76,160.75,43.18]
[1754196999166,4.44216202,160.78,160.75,43.18]
[1754196999355,0.72,160.77,160.75,43.18]
[1754197000561,0.72,160.76,160.75,43.18]
[1754197000975,3.72216202,160.78,160.75,43.18]
[1754197001271,0.92,160.79,160.76,0.7]
[1754197001452,4.64216202,160.79,160.76,0.7]
[1754197001657,0.72,160.78,160.75,43.18]
[1754197001855,3.92216202,160.79,160.75,43.18]
[1754197002058,3.92216202,160.79,160.76,0.7]
[1754197002059,4.64216202,160.79,160.76,0.7]
[1754197003546,0.72,160.78,160.75,43.88]
[1754197007274,4.44216202,160.78,160.75,43.18]
[1754197007581,0.72,160.77,160.75,43.18]
[1754197009691,4.44216202,160.78,160.75,43.88]
[1754197013304,0.2,160.79,160.76,0.7]
[1754197013450,0.2,160.79,160.76,4.42216202]
[1754197013755,0.2,160.79,160.77,47.60216202]
[1754197014147,0.2,160.79,160.78,0.7]
[1754197016253,0.2,160.79,160.78,4.42216202]
[1754197021480,0.2,160.79,160.78,0.7]
[1754197022091,0.2,160.79,160.78,4.42216202]
[1754197022396,0.2,160.79,160.78,21.20684599]
[1754197023067,0.2,160.79,160.78,23.70068899]
[1754197026084,0.88,160.79,160.76,26.67]
[1754197026293,0.88,160.79,160.77,43.18]
[1754197026294,0.68,160.78,160.77,43.18]
[1754197026498,4.40216202,160.78,160.77,43.18]
[1754197027666,4.40216202,160.78,160.75,0.06]
[1754197027876,4.40216202,160.78,160.75,43.97]
[1754197028294,4.40216202,160.78,160.75,43.3]
[1754197028777,6.49825205,160.78,160.75,43.3]
[1754197029486,6.49825205,160.78,160.75,43.97]
[1754197031594,6.49825205,160.77,160.75,43.3]
[1754197031898,5.81825205,160.77,160.75,43.3]
[1754197032104,0.68,160.76,160.75,43.3]
[1754197034800,0.68,160.76,160.75,0.06]
[1754197035467,6.49825205,160.76,160.75,0.06]
[1754197035912,10.69212641,160.76,160.75,0.06]
[1754197038103,37.94379965,160.76,160.75,0.06]
[1754197038698,32.69507448,160.76,160.75,0.06]
[1754197039014,26.47462164,160.76,160.75,0.06]
[1754197039405,43.25930561,160.76,160.75,0.06]
[1754197041510,37.44105356,160.76,160.75,0.06]
[1754197041718,43.25930561,160.76,160.75,0.06]
[1754197042600,49.47975845,160.76,160.75,0.06]
[1754197042998,5.81825205,160.75,160.74,0.06]
[1754197043314,18.89115364,160.75,160.74,0.06]
[1754197044102,67.89667742,160.75,160.74,0.06]
[1754197044294,76.10331485,160.75,160.74,0.06]
[1754197045199,79.35278433,160.75,160.74,0.06]
[1754197045390,79.33734705,160.75,160.74,0.06]
[1754197048820,73.11650724,160.75,160.74,0.06]
[1754197049010,116.41650724,160.75,160.74,0.06]
[1754197052292,112.23807016,160.75,160.74,0.06]
[1754197052497,116.40840118,160.75,160.74,0.06]
[1754197053109,119.66573132,160.75,160.74,0.06]
[1754197053308,119.04256189,160.75,160.74,0.06]
[1754197058899,116.95175648,160.75,160.74,0.06]
[1754197059198,117.57492591,160.75,160.74,0.06]
[1754197060412,117.60492591,160.75,160.74,0.06]
[1754197060726,110.02906811,160.75,160.74,0.06]
[1754197062123,109.34906811,160.75,160.74,0.06]
[1754197064302,109.30906811,160.75,160.74,0.06]
[1754197064934,66.04906811,160.75,160.74,0.06]
[1754197065132,109.30906811,160.75,160.74,0.06]
[1754197065824,110.00906811,160.75,160.74,0.06]
[1754197065999,66.74906811,160.75,160.74,0.06]
[1754197066399,110.00906811,160.75,160.74,0.06]
[1754197067449,110.00906811,160.75,160.73,0.06]
[1754197067615,8.59777766,160.74,160.73,0.06]
[1754197067819,16.80441509,160.74,160.73,0.06]
[1754197068618,16.10441509,160.74,160.73,0.73]
[1754197069924,59.36441509,160.74,160.73,0.73]
[1754197072220,4.17033102,160.74,160.73,0.73]
[1754197072450,0.03,160.75,160.73,0.73]
[1754197073111,0.03,160.75,160.74,3.72744664]
[1754197073517,0.03,160.75,160.74,4.39744664]
[1754197074949,0.03,160.75,160.74,0.67]
[1754197075957,5.84830753,160.75,160.74,0.67]
[1754197076124,5.84830753,160.75,160.73,0.73]
[1754197076630,6.47147696,160.75,160.73,0.73]
[1754197077028,5.81830753,160.74,160.73,0.06]
[1754197077442,5.81830753,160.74,160.73,0.73]
[1754197079649,6.47147696,160.75,160.73,0.73]
[1754197083763,6.47147696,160.75,160.73,0.06]
[1754197084056,6.47147696,160.75,160.74,0.67]
[1754197087869,6.47147696,160.75,160.73,0.74]
[1754197090166,6.47147696,160.75,160.74,0.68]
[1754197090341,0.03,160.75,160.74,0.68]
[1754197104160,0.03,160.75,160.74,0.74]
[1754197106447,0.03,160.75,160.74,6.55830753]
[1754197106877,0.03,160.75,160.74,4.46352091]
[1754197109266,0.03,160.75,160.74,0.74]
[1754197113370,0.03,160.75,160.74,4.46352091]
[1754197118568,0.03,160.75,160.74,21.24820488]
[1754197118891,0.03,160.75,160.74,25.64087488]
[1754197120925,0.03,160.75,160.74,27.73121558]
[1754197121470,0.03,160.77,160.76,42.78468397]
[1754197121700,0.03,160.77,160.76,48.59854558]
[1754197121905,0.03,160.77,160.76,49.30854558]
[1754197123413,0.03,160.77,160.76,92.52854558]
[1754197125994,0.2,160.79,160.78,22.59854558]
[1754197126375,0.2,160.79,160.78,23.30854558]
[1754197127678,0.2,160.79,160.78,25.80223358]
[1754197131703,0.9,160.79,160.78,68.31223358]
[1754197131895,0.9,160.79,160.78,8.30754961]
[1754197132206,0.9,160.79,160.78,69.22]
[1754197132497,0.9,160.79,160.78,43.22]
[1754197133716,0.9,160.79,160.78,69.22]
[1754197139901,0.9,160.79,160.78,43.22]
[1754197148601,0.2,160.79,160.78,43.22]
[1754197153500,0.2,160.79,160.77,43.87]
[1754197158947,0.2,160.79,160.77,43.2]
[1754197159122,0.2,160.79,160.78,0.67]
[1754197159942,0.2,160.79,160.77,43.87]
[1754197165041,0.2,160.79,160.77,43.2]
[1754197165238,0.92,160.79,160.77,43.2]
[1754197165438,0.72,160.78,160.77,43.2]
[1754197165643,0.2,160.79,160.77,43.2]
[1754197165828,0.2,160.79,160.75,0.73]
[1754197165829,4.44271114,160.78,160.75,0.06]
[1754197166026,4.44271114,160.77,160.75,0.06]
[1754197166230,0.72,160.77,160.75,0.06]
[1754197166434,4.44271114,160.78,160.75,0.73]
[1754197166829,0.92,160.79,160.76,0.67]
[1754197167031,3.72271114,160.78,160.76,0.67]
[1754197167628,5.26588057,160.79,160.76,0.67]
[1754197167940,5.26588057,160.79,160.77,0.67]
[1754197167941,0.2,160.79,160.77,0.67]
[1754197168350,0.2,160.79,160.78,0.67]
[1754197168928,0.2,160.79,160.77,0.67]
[1754197172651,3.92271114,160.79,160.77,0.67]
[1754197173054,0.2,160.79,160.77,0.67]
[1754197179055,0.2,160.79,160.77,4.39271114]
[1754197179259,0.2,160.79,160.78,0.72]
[1754197180465,0.2,160.79,160.78,30.44271114]
[1754197182836,0.2,160.79,160.78,26.72]
[1754197187867,0.2,160.79,160.78,26.0]
[1754197188869,0.85,160.79,160.78,26.0]
[1754197189164,0.85,160.79,160.76,43.94]
[1754197189345,0.65,160.78,160.76,43.22]
[1754197190457,0.65,160.78,160.77,0.06]
[1754197193164,4.57271114,160.79,160.77,0.06]
[1754197194070,4.40095678,160.79,160.78,0.72]
[1754197194273,0.2,160.79,160.78,0.72]
[1754197200550,0.2,160.79,160.77,0.78]
[1754197202369,4.40095678,160.79,160.77,0.78]
[1754197202589,0.2,160.79,160.78,0.72]
[1754197206174,0.2,160.79,160.77,0.06]
[1754197206376,0.2,160.79,160.77,0.71]
[1754197206957,0.2,160.79,160.77,4.43271114]
[1754197207284,0.2,160.79,160.78,0.65]
[1754197210976,0.2,160.79,160.78,4.37271114]
[1754197212689,0.2,160.79,160.78,0.65]
[1754197218286,0.87,160.79,160.77,3.78271114]
[1754197218875,0.2,160.79,160.77,4.43271114]
[1754197219080,4.59271114,160.79,160.77,0.06]
[1754197219280,4.39271114,160.78,160.77,0.06]
[1754197223095,0.2,160.79,160.77,0.06]
[1754197223298,3.72271114,160.78,160.77,0.06]
[1754197223987,0.87,160.79,160.77,0.06]
[1754197224203,3.72271114,160.78,160.77,0.06]
[1754197226198,4.59271114,160.79,160.77,0.06]
[1754197228483,8.79371879,160.79,160.77,0.06]
[1754197228689,0.2,160.79,160.77,0.06]
[1754197228888,4.59271114,160.79,160.77,0.06]
[1754197229514,0.87,160.79,160.77,0.06]
[1754197229693,4.59271114,160.79,160.77,0.06]
[1754197231009,8.79338133,160.79,160.77,0.06]
[1754197231192,4.59271114,160.79,160.77,0.06]
[1754197231792,0.87,160.79,160.77,0.06]
[1754197232878,0.2,160.79,160.78,0.65]
[1754197233096,0.2,160.79,160.77,0.06]
[1754197233311,0.2,160.79,160.77,0.71]
[1754197233891,0.2,160.79,160.77,0.06]
[1754197234208,0.87,160.79,160.77,0.06]
[1754197234802,0.2,160.79,160.77,0.74]
[1754197235107,0.2,160.79,160.77,4.46271114]
[1754197235307,0.2,160.79,160.78,0.68]
[1754197243429,0.2,160.79,160.78,26.68]
[1754197245832,0.2,160.79,160.77,3.234465]
[1754197247429,0.2,160.79,160.77,2.554465]
[1754197247734,0.69,160.78,160.77,2.554465]
[1754197247903,0.2,160.79,160.77,2.554465]
[1754197248109,0.89,160.79,160.77,2.554465]
[1754197248533,0.69,160.78,160.77,2.554465]
[1754197249112,0.69,160.78,160.77,26.06]
[1754197250321,4.41271114,160.78,160.77,0.06]
[1754197255243,8.61299995,160.78,160.77,0.06]
[1754197255440,4.41271114,160.78,160.77,0.06]
[1754197261348,3.72271114,160.78,160.77,0.06]
[1754197261748,7.92299995,160.78,160.77,0.06]
[1754197262130,3.72271114,160.78,160.77,0.06]
[1754197262948,3.72271114,160.78,160.77,0.74]
[1754197263550,3.92271114,160.79,160.77,0.74]
[1754197265334,0.2,160.79,160.77,4.46271114]
[1754197265550,0.2,160.79,160.78,5.683458]
[1754197271045,0.2,160.79,160.78,9.40616914]
[1754197276759,0.2,160.79,160.78,5.683458]
[1754197277991,0.2,160.79,160.78,5.023458]
[1754197278286,0.2,160.79,160.77,0.06]
[1754197278287,4.60271114,160.79,160.77,0.06]
[1754197278447,0.68,160.78,160.77,0.06]
[1754197279184,4.60271114,160.79,160.77,0.06]
[1754197280281,0.68,160.78,160.77,0.06]
[1754197280683,3.92271114,160.79,160.77,0.06]
[1754197281064,4.60271114,160.79,160.77,0.06]
[1754197281686,0.2,160.79,160.78,0.66]
[1754197284394,0.2,160.79,160.77,0.06]
[1754197284587,0.2,160.79,160.77,0.72]
[1754197287108,0.2,160.79,160.78,0.66]
[1754197291531,0.2,160.79,160.78,3.15431]
[1754197293001,0.2,160.79,160.78,0.66]
[1754197294106,0.2,160.79,160.77,0.06]
[1754197294306,0.88,160.79,160.77,0.06]
[1754197296597,3.92271114,160.79,160.77,0.06]
[1754197296805,0.2,160.79,160.77,0.06]
[1754197297004,0.9,160.79,160.77,0.06]
[1754197300518,0.2,160.79,160.77,0.06]
[1754197300718,0.2,160.79,160.77,0.73]
[1754197300917,0.2,160.79,160.77,0.06]
[1754197301418,0.9,160.79,160.77,0.06]
[1754197301602,0.7,160.78,160.77,0.06]
[1754197304400,0.2,160.79,160.77,0.06]
[1754197304619,0.2,160.79,160.77,0.73]
[1754197305012,0.2,160.79,160.78,0.67]
[1754197312922,0.2,160.79,160.77,0.73]
[1754197313435,0.2,160.79,160.77,4.45271114]
[1754197313634,0.2,160.79,160.78,0.67]
[1754197314915,0.2,160.79,160.78,4.39271114]
[1754197317131,0.2,160.79,160.78,6.88686514]
[1754197317836,0.2,160.79,160.78,4.39271114]
[1754197320444,0.2,160.79,160.78,3.72271114]
[1754197320756,4.62271114,160.79,160.77,2.554154]
[1754197320925,3.72271114,160.78,160.77,2.554154]
[1754197321119,4.42271114,160.78,160.77,2.554154]
[1754197321319,4.42271114,160.78,160.77,0.06]
[1754197323253,8.61506888,160.78,160.77,0.06]
[1754197329854,4.89235774,160.78,160.77,0.06]
[1754197330043,5.01552717,160.79,160.77,0.73]
[1754197330356,3.72271114,160.78,160.77,0.06]
[1754197330743,0.69,160.78,160.77,0.06]
[1754197330948,6.50883656,160.78,160.77,0.06]
[1754197331152,5.81883656,160.78,160.77,0.06]
[1754197331363,10.0111943,160.78,160.77,0.06]
[1754197331963,10.7011943,160.78,160.77,0.06]
[1754197332142,10.0111943,160.78,160.77,0.06]
[1754197336136,4.19235774,160.78,160.77,0.73]
[1754197336342,0.2,160.79,160.77,0.73]
[1754197342245,0.2,160.79,160.77,6.54883656]
[1754197342441,0.2,160.79,160.78,0.67]
[1754197357360,0.2,160.79,160.78,4.39208699]
[1754197357561,0.2,160.79,160.78,0.67]
[1754197358158,0.2,160.79,160.78,3.16431]
[1754197359462,4.58208699,160.79,160.77,0.06]
[1754197359662,3.72208699,160.78,160.77,0.06]
[1754197359887,4.38208699,160.78,160.77,0.06]
[1754197361385,3.92208699,160.79,160.77,0.06]
[1754197362297,4.58208699,160.79,160.77,0.06]
[1754197374499,3.92208699,160.79,160.77,0.76]
[1754197375196,4.58208699,160.79,160.77,0.76]
[1754197376190,0.2,160.79,160.78,0.7]
[1754197376395,0.2,160.79,160.78,4.42208699]
[1754197376693,0.2,160.79,160.78,9.00417399]
[1754197382478,0.2,160.79,160.78,5.282087]
[1754197382683,0.86,160.79,160.78,4.582087]
[1754197383373,0.2,160.79,160.78,4.582087]
[1754197392002,0.2,160.79,160.78,5.262087]
[1754197392704,0.2,160.79,160.78,8.98417399]
[1754197408124,0.2,160.79,160.78,25.76885796]
[1754197423534,0.2,160.79,160.78,68.94885796]
[1754197425255,0.2,160.79,160.78,69.57082586]
[1754197429348,0.03,160.81,160.8,16.78468397]
[1754197429566,0.7,160.86,160.85,29.72208699]
[1754197429729,0.7,160.86,160.85,72.90208699]
[1754197437540,0.7,160.86,160.84,4.186079]
[1754197437748,0.7,160.86,160.85,43.18]
[1754197438363,4.42208699,160.86,160.85,43.18]
[1754197438680,0.7,160.86,160.85,43.18]
[1754197448267,4.42208699,160.86,160.83,26.0]
[1754197448471,0.03,160.88,160.84,43.18]
[1754197448660,4.44208699,160.85,160.83,43.18]
[1754197448859,4.44208699,160.84,160.83,43.2]
[1754197449262,4.44208699,160.84,160.82,69.2]